[Event "Late-Titled-Tuesday-Blitz-September-12-2023"]
[Site "Chess.com"]
[Date "2023.09.12"]
[Round "1"]
[White "Lady_Nika"]
[Black "jcibarra"]
[Result "0-1"]
[WhiteElo "2464"]
[BlackElo "2921"]
[TimeControl "180+1"]
[EndTime "14:06:06 PDT"]
[Termination "jcibarra won by resignation"]

1. e4 {[%clk 0:02:59]} 1... c5 {[%clk 0:03:00.1]} 2. Nc3 {[%clk 0:02:58.9]} 2...
a6 {[%clk 0:03:00.1]} 3. g3 {[%clk 0:02:59]} 3... b5 {[%clk 0:03:00.4]} 4. Bg2
{[%clk 0:02:59.3]} 4... Bb7 {[%clk 0:03:01]} 5. d3 {[%clk 0:02:59.3]} 5... e6
{[%clk 0:03:01.7]} 6. f4 {[%clk 0:02:58.2]} 6... d5 {[%clk 0:03:01.6]} 7. e5
{[%clk 0:02:52.4]} 7... h5 {[%clk 0:03:01.5]} 8. h4 {[%clk 0:02:52]} 8... Ne7
{[%clk 0:03:00.4]} 9. Nf3 {[%clk 0:02:48.9]} 9... Nf5 {[%clk 0:03:00.3]} 10. Ne2
{[%clk 0:02:49]} 10... d4 {[%clk 0:03:00.7]} 11. O-O {[%clk 0:02:48.2]} 11...
Nd7 {[%clk 0:03:00.5]} 12. Kh2 {[%clk 0:02:47.4]} 12... Nb6 {[%clk 0:03:00.1]}
13. Bd2 {[%clk 0:02:40]} 13... Nd5 {[%clk 0:02:59.8]} 14. Qc1 {[%clk 0:02:36.4]}
14... Nde3 {[%clk 0:02:56.9]} 15. Bxe3 {[%clk 0:02:33.8]} 15... Nxe3 {[%clk
0:02:56.9]} 16. Rf2 {[%clk 0:02:33.7]} 16... Ng4+ {[%clk 0:02:44.7]} 17. Kg1
{[%clk 0:02:33.8]} 17... Nxf2 {[%clk 0:02:45.4]} 18. Kxf2 {[%clk 0:02:34.5]}
18... Rc8 {[%clk 0:02:42.7]} 19. a4 {[%clk 0:02:34.2]} 19... c4 {[%clk
0:02:38.2]} 20. Qd2 {[%clk 0:02:24.1]} 20... Bc5 {[%clk 0:02:33.3]} 21. axb5
{[%clk 0:02:17.6]} 21... axb5 {[%clk 0:02:32.9]} 22. Qa5 {[%clk 0:02:09.3]}
22... Qd7 {[%clk 0:02:32]} 23. Ng5 {[%clk 0:02:01.3]} 23... O-O {[%clk
0:02:23.1]} 24. Bxb7 {[%clk 0:01:58.8]} 24... Qxb7 {[%clk 0:02:22.6]} 25. Qe1
{[%clk 0:01:43.9]} 25... cxd3 {[%clk 0:02:18.4]} 26. cxd3 {[%clk 0:01:43.6]}
26... Be7 {[%clk 0:02:18.7]} 27. Ne4 {[%clk 0:01:42.4]} 27... Rc2 {[%clk
0:02:15.2]} 28. Kf3 {[%clk 0:01:40.5]} 28... Rfc8 {[%clk 0:02:00.1]} 29. Nxd4
{[%clk 0:01:39.3]} 29... Rxb2 {[%clk 0:01:55]} 30. f5 {[%clk 0:01:26.5]} 30...
Qd5 {[%clk 0:01:52.8]} 31. f6 {[%clk 0:01:17.9]} 31... Bc5 {[%clk 0:01:20.1]}
32. Rc1 {[%clk 0:00:29.1]} 32... Qxd4 {[%clk 0:01:16.4]} 33. g4 {[%clk
0:00:24.9]} 33... Qxd3+ {[%clk 0:01:13.6]} 34. Kf4 {[%clk 0:00:24.7]} 34... Qe3+
{[%clk 0:01:07.6]} 0-1

[Event "Late-Titled-Tuesday-Blitz-September-12-2023"]
[Site "Chess.com"]
[Date "2023.09.12"]
[Round "1"]
[White "nevermind242"]
[Black "Korchmar_Vasiliy"]
[Result "0-1"]
[WhiteElo "2370"]
[BlackElo "2696"]
[TimeControl "180+1"]
[EndTime "14:06:08 PDT"]
[Termination "Korchmar_Vasiliy won by checkmate"]

1. Nf3 {[%clk 0:02:59.6]} 1... d5 {[%clk 0:02:59.6]} 2. g3 {[%clk 0:02:58.7]}
2... g6 {[%clk 0:02:59.1]} 3. Bg2 {[%clk 0:02:59]} 3... Bg7 {[%clk 0:02:59.7]}
4. c4 {[%clk 0:02:59.7]} 4... c6 {[%clk 0:02:58.6]} 5. O-O {[%clk 0:02:59.1]}
5... e5 {[%clk 0:02:58.8]} 6. cxd5 {[%clk 0:02:58.6]} 6... cxd5 {[%clk
0:02:59.7]} 7. Qa4+ {[%clk 0:02:58.5]} 7... Nc6 {[%clk 0:02:59.2]} 8. d4 {[%clk
0:02:52]} 8... e4 {[%clk 0:02:59.6]} 9. Ne5 {[%clk 0:02:51.9]} 9... Ne7 {[%clk
0:02:59.8]} 10. Bg5 {[%clk 0:02:36.4]} 10... f6 {[%clk 0:02:55]} 11. Nxc6 {[%clk
0:02:36.3]} 11... Nxc6 {[%clk 0:02:50.3]} 12. Bd2 {[%clk 0:02:36.4]} 12... O-O
{[%clk 0:02:39.2]} 13. e3 {[%clk 0:02:36.5]} 13... Be6 {[%clk 0:02:27.6]} 14.
Nc3 {[%clk 0:02:16.4]} 14... Qd7 {[%clk 0:02:25.8]} 15. Rfc1 {[%clk 0:02:09.8]}
15... f5 {[%clk 0:02:22.5]} 16. Bf1 {[%clk 0:01:59.9]} 16... g5 {[%clk
0:02:20.6]} 17. Bb5 {[%clk 0:01:52.8]} 17... f4 {[%clk 0:02:11]} 18. exf4 {[%clk
0:01:50.2]} 18... gxf4 {[%clk 0:02:08]} 19. Ne2 {[%clk 0:01:29.5]} 19... e3
{[%clk 0:01:36.3]} 20. fxe3 {[%clk 0:01:27.8]} 20... fxg3 {[%clk 0:01:36]} 21.
hxg3 {[%clk 0:01:18.7]} 21... Bg4 {[%clk 0:01:22.5]} 22. Nf4 {[%clk 0:00:50.4]}
22... Bf3 {[%clk 0:01:21.8]} 23. Bxc6 {[%clk 0:00:38.4]} 23... Qg4 {[%clk
0:01:06.5]} 24. Be1 {[%clk 0:00:29.9]} 24... bxc6 {[%clk 0:01:00.3]} 25. Rxc6
{[%clk 0:00:21.3]} 25... Rxf4 {[%clk 0:00:49.4]} 26. exf4 {[%clk 0:00:22.1]}
26... Qh3 {[%clk 0:00:49.9]} 27. Qc2 {[%clk 0:00:15.5]} 27... Bxd4+ {[%clk
0:00:48.7]} 28. Bf2 {[%clk 0:00:13.9]} 28... Qg2# {[%clk 0:00:48.2]} 0-1

[Event "Late-Titled-Tuesday-Blitz-September-12-2023"]
[Site "Chess.com"]
[Date "2023.09.12"]
[Round "1"]
[White "Ducke13"]
[Black "SpeedofLight0"]
[Result "0-1"]
[WhiteElo "2506"]
[BlackElo "3101"]
[TimeControl "180+1"]
[EndTime "14:06:10 PDT"]
[Termination "SpeedofLight0 won on time"]

1. d4 {[%clk 0:03:00.9]} 1... Nf6 {[%clk 0:02:56.9]} 2. g3 {[%clk 0:03:01.4]}
2... d5 {[%clk 0:02:56.3]} 3. Nf3 {[%clk 0:02:59.8]} 3... Bf5 {[%clk 0:02:56.3]}
4. c4 {[%clk 0:02:59.4]} 4... e6 {[%clk 0:02:56.3]} 5. Nc3 {[%clk 0:02:59.1]}
5... c6 {[%clk 0:02:56.3]} 6. Nh4 {[%clk 0:02:59.6]} 6... Bg4 {[%clk 0:02:50.9]}
7. h3 {[%clk 0:02:59.6]} 7... Bh5 {[%clk 0:02:51.3]} 8. g4 {[%clk 0:02:58.2]}
8... Bg6 {[%clk 0:02:51.6]} 9. g5 {[%clk 0:02:57.1]} 9... Ne4 {[%clk 0:02:45]}
10. Nxg6 {[%clk 0:02:55.6]} 10... Nxc3 {[%clk 0:02:41.2]} 11. bxc3 {[%clk
0:02:50.9]} 11... hxg6 {[%clk 0:02:41.6]} 12. Qb3 {[%clk 0:02:51.4]} 12... Qb6
{[%clk 0:02:36.8]} 13. c5 {[%clk 0:02:43.5]} 13... Qc7 {[%clk 0:02:35.6]} 14.
Bf4 {[%clk 0:02:32]} 14... Qc8 {[%clk 0:02:35.2]} 15. Bg2 {[%clk 0:02:24.1]}
15... Nd7 {[%clk 0:02:34.9]} 16. Bg3 {[%clk 0:02:16.9]} 16... Be7 {[%clk
0:02:33.1]} 17. h4 {[%clk 0:02:15.6]} 17... b6 {[%clk 0:02:25.9]} 18. cxb6
{[%clk 0:01:59.6]} 18... axb6 {[%clk 0:02:26.8]} 19. c4 {[%clk 0:01:54]} 19...
Ra3 {[%clk 0:02:22.6]} 20. Qc2 {[%clk 0:01:47.4]} 20... Bb4+ {[%clk 0:02:19.7]}
21. Kf1 {[%clk 0:01:46.1]} 21... Rc3 {[%clk 0:02:08.7]} 22. Qb2 {[%clk
0:01:43.4]} 22... Rxc4 {[%clk 0:02:07.8]} 23. Rc1 {[%clk 0:01:38]} 23... Qa6
{[%clk 0:02:01.4]} 24. Rxc4 {[%clk 0:01:22.7]} 24... Qxc4 {[%clk 0:02:02.3]} 25.
Kg1 {[%clk 0:00:55.6]} 25... O-O {[%clk 0:01:51.2]} 26. h5 {[%clk 0:00:52.3]}
26... gxh5 {[%clk 0:01:48.7]} 27. Rxh5 {[%clk 0:00:44.6]} 27... Ra8 {[%clk
0:01:48.3]} 28. Qb1 {[%clk 0:00:43]} 28... Nf8 {[%clk 0:01:40.9]} 29. Be5 {[%clk
0:00:22.3]} 29... Qxe2 {[%clk 0:01:32.6]} 30. Rh2 {[%clk 0:00:13.3]} 30... Qe1+
{[%clk 0:01:17.5]} 31. Qxe1 {[%clk 0:00:12.1]} 31... Bxe1 {[%clk 0:01:18.4]} 32.
Kf1 {[%clk 0:00:05.6]} 32... Bc3 {[%clk 0:01:15.9]} 33. Bf3 {[%clk 0:00:02.7]}
33... Rxa2 {[%clk 0:01:14.8]} 34. Kg2 {[%clk 0:00:02.1]} 34... Ng6 {[%clk
0:01:11.8]} 0-1

[Event "Late-Titled-Tuesday-Blitz-September-12-2023"]
[Site "Chess.com"]
[Date "2023.09.12"]
[Round "1"]
[White "expii"]
[Black "HalfIsCrayfish"]
[Result "0-1"]
[WhiteElo "2259"]
[BlackElo "2555"]
[TimeControl "180+1"]
[EndTime "14:06:11 PDT"]
[Termination "HalfIsCrayfish won on time"]

1. e4 {[%clk 0:03:00]} 1... c6 {[%clk 0:02:53.7]} 2. d4 {[%clk 0:02:58.8]} 2...
d5 {[%clk 0:02:53.6]} 3. f3 {[%clk 0:02:58.3]} 3... e6 {[%clk 0:02:46.2]} 4. Nc3
{[%clk 0:02:55.6]} 4... Nf6 {[%clk 0:02:46.3]} 5. e5 {[%clk 0:02:55.6]} 5...
Nfd7 {[%clk 0:02:46.8]} 6. f4 {[%clk 0:02:54.2]} 6... b5 {[%clk 0:02:44.8]} 7.
a3 {[%clk 0:02:42.3]} 7... b4 {[%clk 0:02:43.1]} 8. axb4 {[%clk 0:02:36.2]} 8...
Bxb4 {[%clk 0:02:44]} 9. Nf3 {[%clk 0:02:35.9]} 9... f6 {[%clk 0:02:34.4]} 10.
Bd3 {[%clk 0:02:32.4]} 10... O-O {[%clk 0:02:29.3]} 11. O-O {[%clk 0:02:20.5]}
11... c5 {[%clk 0:02:26.1]} 12. Be3 {[%clk 0:02:04.9]} 12... Nc6 {[%clk
0:02:21.6]} 13. Qd2 {[%clk 0:01:48.7]} 13... cxd4 {[%clk 0:02:19.2]} 14. Nxd4
{[%clk 0:01:36.7]} 14... Nxd4 {[%clk 0:02:18.3]} 15. Bxd4 {[%clk 0:01:37.6]}
15... Bc5 {[%clk 0:01:55.8]} 16. Qe3 {[%clk 0:01:26]} 16... Qb6 {[%clk
0:01:47.8]} 17. Bxc5 {[%clk 0:01:15]} 17... Qxc5 {[%clk 0:01:41]} 18. Qxc5
{[%clk 0:00:58.1]} 18... Nxc5 {[%clk 0:01:41.9]} 19. Bb5 {[%clk 0:00:48.1]}
19... fxe5 {[%clk 0:01:28.7]} 20. fxe5 {[%clk 0:00:49]} 20... Rxf1+ {[%clk
0:01:28.8]} 21. Rxf1 {[%clk 0:00:45.7]} 21... Bd7 {[%clk 0:01:29.1]} 22. Bxd7
{[%clk 0:00:33.9]} 22... Nxd7 {[%clk 0:01:30]} 23. Re1 {[%clk 0:00:31.1]} 23...
Rb8 {[%clk 0:01:29.9]} 24. b3 {[%clk 0:00:26.6]} 24... Rc8 {[%clk 0:01:29.9]}
25. Nb5 {[%clk 0:00:26.5]} 25... Rxc2 {[%clk 0:01:28.6]} 26. Nxa7 {[%clk
0:00:14.6]} 26... Rb2 {[%clk 0:01:27.6]} 27. Nc6 {[%clk 0:00:14.4]} 27... Rxb3
{[%clk 0:01:24.1]} 28. Nd4 {[%clk 0:00:15]} 28... Rb6 {[%clk 0:01:23.4]} 29. Re2
{[%clk 0:00:15]} 29... Kf7 {[%clk 0:01:21.5]} 30. Kf2 {[%clk 0:00:13.2]} 30...
Ke7 {[%clk 0:01:19.2]} 31. Nf3 {[%clk 0:00:12.3]} 31... Nc5 {[%clk 0:01:16.4]}
32. Rc2 {[%clk 0:00:10.7]} 32... Rc6 {[%clk 0:01:12.7]} 33. Ke3 {[%clk
0:00:05.8]} 33... Kd7 {[%clk 0:01:08.7]} 34. Nd4 {[%clk 0:00:04.3]} 34... Rc7
{[%clk 0:01:09.2]} 0-1

[Event "Late-Titled-Tuesday-Blitz-September-12-2023"]
[Site "Chess.com"]
[Date "2023.09.12"]
[Round "1"]
[White "rookoco"]
[Black "drragnar1"]
[Result "1-0"]
[WhiteElo "2708"]
[BlackElo "2381"]
[TimeControl "180+1"]
[EndTime "14:06:12 PDT"]
[Termination "rookoco won by resignation"]

1. e4 {[%clk 0:03:00.9]} 1... g6 {[%clk 0:02:57.9]} 2. d4 {[%clk 0:02:59.7]}
2... Bg7 {[%clk 0:02:58.3]} 3. Nf3 {[%clk 0:02:54.8]} 3... d6 {[%clk 0:02:58.5]}
4. Be2 {[%clk 0:02:54.3]} 4... Nf6 {[%clk 0:02:58.7]} 5. Nc3 {[%clk 0:02:54.1]}
5... O-O {[%clk 0:02:58.2]} 6. O-O {[%clk 0:02:53.9]} 6... c5 {[%clk 0:02:58.7]}
7. dxc5 {[%clk 0:02:52.9]} 7... dxc5 {[%clk 0:02:59.6]} 8. Bf4 {[%clk
0:02:32.6]} 8... Nc6 {[%clk 0:02:54.7]} 9. Re1 {[%clk 0:02:26.9]} 9... Nd4
{[%clk 0:02:49.8]} 10. e5 {[%clk 0:02:24.9]} 10... Nh5 {[%clk 0:02:41.7]} 11.
Be3 {[%clk 0:02:23.6]} 11... Nxe2+ {[%clk 0:02:39.2]} 12. Qxe2 {[%clk
0:02:19.9]} 12... Be6 {[%clk 0:01:57.2]} 13. Bxc5 {[%clk 0:02:17.4]} 13... Nf4
{[%clk 0:01:54.6]} 14. Qe4 {[%clk 0:02:15.2]} 14... Nd5 {[%clk 0:01:40.6]} 15.
Ne2 {[%clk 0:02:12.1]} 15... Qc7 {[%clk 0:01:18.2]} 16. Ba3 {[%clk 0:02:10.3]}
16... Rfd8 {[%clk 0:01:15.8]} 17. Ned4 {[%clk 0:02:09.7]} 17... Bc8 {[%clk
0:01:01.3]} 18. Rad1 {[%clk 0:02:08.1]} 18... a6 {[%clk 0:00:50.6]} 19. e6
{[%clk 0:01:56.9]} 19... f5 {[%clk 0:00:48.6]} 20. Qd3 {[%clk 0:01:53.2]} 20...
b5 {[%clk 0:00:47.1]} 21. Qb3 {[%clk 0:01:49]} 21... Bb7 {[%clk 0:00:46]} 22. h4
{[%clk 0:01:40]} 22... Rac8 {[%clk 0:00:45.2]} 23. c3 {[%clk 0:01:38.2]} 23...
Qf4 {[%clk 0:00:39.4]} 24. h5 {[%clk 0:01:36.7]} 24... Qg4 {[%clk 0:00:35.1]}
25. hxg6 {[%clk 0:01:32.6]} 25... hxg6 {[%clk 0:00:36]} 26. Nh2 {[%clk
0:01:26.8]} 26... Qg5 {[%clk 0:00:29.8]} 27. Ndf3 {[%clk 0:01:25.8]} 27... Qh5
{[%clk 0:00:27.8]} 28. Rd2 {[%clk 0:01:22.6]} 28... Bh6 {[%clk 0:00:23.1]} 29.
Rd4 {[%clk 0:01:20.4]} 29... Bf4 {[%clk 0:00:18.4]} 30. Red1 {[%clk 0:01:16.4]}
30... Bxh2+ {[%clk 0:00:17.6]} 31. Nxh2 {[%clk 0:01:16]} 31... f4 {[%clk
0:00:12.1]} 32. Bxe7 {[%clk 0:01:13.2]} 32... Re8 {[%clk 0:00:10.6]} 33. Rxd5
{[%clk 0:01:11.9]} 33... Rxe7 {[%clk 0:00:10.3]} 34. Rxh5 {[%clk 0:01:11.1]} 1-0

[Event "Late-Titled-Tuesday-Blitz-September-12-2023"]
[Site "Chess.com"]
[Date "2023.09.12"]
[Round "1"]
[White "Gyulamiryan-koryun"]
[Black "Chessdreamer2020"]
[Result "0-1"]
[WhiteElo "2013"]
[BlackElo "2517"]
[TimeControl "180+1"]
[EndTime "14:06:13 PDT"]
[Termination "Chessdreamer2020 won on time"]

1. e4 {[%clk 0:02:51.8]} 1... d6 {[%clk 0:02:59.6]} 2. d4 {[%clk 0:02:50.6]}
2... Nf6 {[%clk 0:03:00.5]} 3. Bd3 {[%clk 0:02:49.4]} 3... e5 {[%clk 0:02:59.7]}
4. d5 {[%clk 0:02:32.2]} 4... Be7 {[%clk 0:02:59]} 5. Ne2 {[%clk 0:02:28.8]}
5... O-O {[%clk 0:02:59.1]} 6. O-O {[%clk 0:02:28.6]} 6... c6 {[%clk 0:02:53.8]}
7. c4 {[%clk 0:02:28.5]} 7... a6 {[%clk 0:02:51]} 8. Nbc3 {[%clk 0:02:26.7]}
8... cxd5 {[%clk 0:02:50.7]} 9. exd5 {[%clk 0:02:25.1]} 9... Nbd7 {[%clk
0:02:49.6]} 10. b4 {[%clk 0:02:23]} 10... a5 {[%clk 0:02:48.3]} 11. Ba3 {[%clk
0:02:20.6]} 11... axb4 {[%clk 0:02:45.4]} 12. Bxb4 {[%clk 0:02:19.5]} 12... b6
{[%clk 0:02:42.7]} 13. f4 {[%clk 0:02:15.5]} 13... exf4 {[%clk 0:02:39.6]} 14.
Nxf4 {[%clk 0:02:12.4]} 14... Ne5 {[%clk 0:02:39.8]} 15. Be2 {[%clk 0:02:11]}
15... Ba6 {[%clk 0:02:35.9]} 16. Qd4 {[%clk 0:02:02.5]} 16... Rc8 {[%clk
0:02:29.9]} 17. Nb5 {[%clk 0:01:43.2]} 17... Bxb5 {[%clk 0:02:25.7]} 18. cxb5
{[%clk 0:01:42.7]} 18... Rc2 {[%clk 0:02:20.3]} 19. Bd3 {[%clk 0:01:32.7]} 19...
Nxd3 {[%clk 0:02:19.5]} 20. Nxd3 {[%clk 0:01:31]} 20... Nd7 {[%clk 0:02:14.6]}
21. Rac1 {[%clk 0:01:21.2]} 21... Bf6 {[%clk 0:02:10.7]} 22. Qg4 {[%clk
0:01:01.9]} 22... Rxc1 {[%clk 0:02:06.2]} 23. Rxc1 {[%clk 0:01:00.7]} 23... Nc5
{[%clk 0:01:59.5]} 24. Nf4 {[%clk 0:00:55.4]} 24... Re8 {[%clk 0:01:50.4]} 25.
Nh5 {[%clk 0:00:43.4]} 25... Bb2 {[%clk 0:01:49.6]} 26. Rf1 {[%clk 0:00:36.9]}
26... g6 {[%clk 0:01:42.9]} 27. Nf6+ {[%clk 0:00:30.7]} 27... Bxf6 {[%clk
0:01:40.8]} 28. h4 {[%clk 0:00:26.2]} 28... h5 {[%clk 0:01:38.8]} 29. Qf3 {[%clk
0:00:23.8]} 29... Kg7 {[%clk 0:01:38.9]} 30. Bc3 {[%clk 0:00:18.5]} 30... Ne4
{[%clk 0:01:31.5]} 31. Bxf6+ {[%clk 0:00:13.2]} 31... Qxf6 {[%clk 0:01:28.4]}
32. Qe3 {[%clk 0:00:07.2]} 32... Qxh4 {[%clk 0:01:25.6]} 33. Qxb6 {[%clk
0:00:04.1]} 33... Ng3 {[%clk 0:01:25.1]} 0-1

[Event "Late-Titled-Tuesday-Blitz-September-12-2023"]
[Site "Chess.com"]
[Date "2023.09.12"]
[Round "1"]
[White "JoseRemolar"]
[Black "Oleksandr_Bortnyk"]
[Result "0-1"]
[WhiteElo "2486"]
[BlackElo "3012"]
[TimeControl "180+1"]
[EndTime "14:06:14 PDT"]
[Termination "Oleksandr_Bortnyk won by resignation"]

1. e4 {[%clk 0:03:00.9]} 1... Nf6 {[%clk 0:02:57.5]} 2. e5 {[%clk 0:03:00.9]}
2... Nd5 {[%clk 0:02:54.8]} 3. c4 {[%clk 0:03:01.3]} 3... Nb6 {[%clk 0:02:55]}
4. c5 {[%clk 0:03:01.9]} 4... Nd5 {[%clk 0:02:55.3]} 5. Bc4 {[%clk 0:03:02.5]}
5... e6 {[%clk 0:02:54.1]} 6. Nc3 {[%clk 0:03:03]} 6... Nxc3 {[%clk 0:02:51.8]}
7. dxc3 {[%clk 0:03:03.9]} 7... Bxc5 {[%clk 0:02:50.8]} 8. Qg4 {[%clk
0:03:03.5]} 8... g5 {[%clk 0:02:49.8]} 9. Qh5 {[%clk 0:02:45.1]} 9... h6 {[%clk
0:02:44.1]} 10. Nf3 {[%clk 0:02:40.4]} 10... Be7 {[%clk 0:02:35.7]} 11. Be3
{[%clk 0:02:25.6]} 11... d5 {[%clk 0:02:31.2]} 12. exd6 {[%clk 0:02:22.8]} 12...
cxd6 {[%clk 0:02:32.1]} 13. Bd4 {[%clk 0:01:58.8]} 13... Bf6 {[%clk 0:02:31.9]}
14. O-O-O {[%clk 0:01:56.3]} 14... d5 {[%clk 0:02:31.7]} 15. Ne5 {[%clk
0:01:41.4]} 15... Qc7 {[%clk 0:02:01.5]} 16. Bb5+ {[%clk 0:01:27.2]} 16... Kf8
{[%clk 0:02:02]} 17. Rhe1 {[%clk 0:01:11.5]} 17... Kg7 {[%clk 0:01:37]} 18. f4
{[%clk 0:01:04.5]} 18... Nc6 {[%clk 0:01:36.1]} 19. Nxc6 {[%clk 0:00:59.5]}
19... bxc6 {[%clk 0:01:17.5]} 20. Bxf6+ {[%clk 0:00:49]} 20... Kxf6 {[%clk
0:01:18.4]} 21. fxg5+ {[%clk 0:00:49.6]} 21... Kg7 {[%clk 0:01:19]} 22. Bd3
{[%clk 0:00:42.8]} 22... Qf4+ {[%clk 0:01:18.7]} 23. Kb1 {[%clk 0:00:41]} 23...
hxg5 {[%clk 0:01:19.6]} 24. Qe2 {[%clk 0:00:40.2]} 24... Rxh2 {[%clk 0:01:18.8]}
25. Rf1 {[%clk 0:00:38.7]} 25... Qg3 {[%clk 0:01:11.3]} 26. Rf3 {[%clk
0:00:37.1]} 26... Qxg2 {[%clk 0:01:11.5]} 27. Qe5+ {[%clk 0:00:36.8]} 27... Kg8
{[%clk 0:01:12.2]} 28. Bh7+ {[%clk 0:00:17.3]} 28... Rxh7 {[%clk 0:01:05]} 29.
Rg3 {[%clk 0:00:15.8]} 29... Qe4+ {[%clk 0:01:04.2]} 30. Qxe4 {[%clk 0:00:09.3]}
30... dxe4 {[%clk 0:01:05.1]} 31. Rxg5+ {[%clk 0:00:07.2]} 31... Kf8 {[%clk
0:01:05.3]} 32. Rd8+ {[%clk 0:00:07.4]} 32... Ke7 {[%clk 0:01:05.7]} 33. Rgg8
{[%clk 0:00:08]} 33... e3 {[%clk 0:01:02.1]} 34. Kc2 {[%clk 0:00:06.6]} 34...
Rh2+ {[%clk 0:01:02.5]} 35. Kd3 {[%clk 0:00:06.5]} 35... Rd2+ {[%clk 0:01:02.7]}
0-1

[Event "Late-Titled-Tuesday-Blitz-September-12-2023"]
[Site "Chess.com"]
[Date "2023.09.12"]
[Round "1"]
[White "PabloZarnicki"]
[Black "artooon"]
[Result "0-1"]
[WhiteElo "2493"]
[BlackElo "3043"]
[TimeControl "180+1"]
[EndTime "14:06:17 PDT"]
[Termination "artooon won on time"]

1. e4 {[%clk 0:02:57.1]} 1... e5 {[%clk 0:02:59.9]} 2. Nf3 {[%clk 0:02:56.9]}
2... Nc6 {[%clk 0:03:00.5]} 3. Nc3 {[%clk 0:02:57.5]} 3... Nf6 {[%clk
0:03:00.2]} 4. d4 {[%clk 0:02:58.1]} 4... exd4 {[%clk 0:02:59.5]} 5. Nxd4 {[%clk
0:02:59]} 5... Bb4 {[%clk 0:02:59.7]} 6. Nxc6 {[%clk 0:02:59.4]} 6... bxc6
{[%clk 0:03:00.3]} 7. Bd3 {[%clk 0:02:59.9]} 7... d5 {[%clk 0:03:00.9]} 8. exd5
{[%clk 0:03:00.5]} 8... O-O {[%clk 0:03:01.5]} 9. O-O {[%clk 0:03:00.9]} 9...
cxd5 {[%clk 0:03:02]} 10. Bg5 {[%clk 0:03:00.4]} 10... Be6 {[%clk 0:03:02.5]}
11. Nb5 {[%clk 0:02:51.8]} 11... c5 {[%clk 0:03:00.8]} 12. a3 {[%clk 0:02:33.5]}
12... Ba5 {[%clk 0:03:00.8]} 13. b4 {[%clk 0:02:28.8]} 13... Bb6 {[%clk
0:02:46.6]} 14. bxc5 {[%clk 0:02:21.3]} 14... Bxc5 {[%clk 0:02:47.5]} 15. Qf3
{[%clk 0:02:15.6]} 15... Rc8 {[%clk 0:02:36.9]} 16. c3 {[%clk 0:02:06.5]} 16...
Bb6 {[%clk 0:02:27.6]} 17. Rac1 {[%clk 0:01:48.6]} 17... h6 {[%clk 0:02:17.1]}
18. Bxf6 {[%clk 0:01:31.6]} 18... Qxf6 {[%clk 0:02:18]} 19. Qxf6 {[%clk
0:01:32]} 19... gxf6 {[%clk 0:02:18.9]} 20. Rfe1 {[%clk 0:01:19.1]} 20... Bd7
{[%clk 0:01:57.6]} 21. Re7 {[%clk 0:01:06.3]} 21... Rcd8 {[%clk 0:01:42.2]} 22.
Re2 {[%clk 0:00:45.8]} 22... Bg4 {[%clk 0:01:39.7]} 23. Rec2 {[%clk 0:00:39.7]}
23... Rfe8 {[%clk 0:01:37.3]} 24. Kf1 {[%clk 0:00:39.4]} 24... Bc5 {[%clk
0:01:26.7]} 25. a4 {[%clk 0:00:36]} 25... Re7 {[%clk 0:01:24]} 26. f3 {[%clk
0:00:35.9]} 26... Bd7 {[%clk 0:01:23.5]} 27. a5 {[%clk 0:00:28.4]} 27... Rb8
{[%clk 0:01:16.3]} 28. Nd4 {[%clk 0:00:27.8]} 28... Re3 {[%clk 0:01:11.3]} 29.
Bf5 {[%clk 0:00:22.6]} 29... Ba4 {[%clk 0:01:05.6]} 30. Ra2 {[%clk 0:00:15.6]}
30... Be8 {[%clk 0:01:06.2]} 31. Re2 {[%clk 0:00:02.8]} 31... Bxd4 {[%clk
0:01:04.1]} 0-1

[Event "Late-Titled-Tuesday-Blitz-September-12-2023"]
[Site "Chess.com"]
[Date "2023.09.12"]
[Round "1"]
[White "KorolDimitriy75"]
[Black "The_Machine04"]
[Result "0-1"]
[WhiteElo "2381"]
[BlackElo "2713"]
[TimeControl "180+1"]
[EndTime "14:06:19 PDT"]
[Termination "The_Machine04 won on time"]

1. d4 {[%clk 0:03:00.9]} 1... d6 {[%clk 0:02:59.9]} 2. c4 {[%clk 0:03:00.6]}
2... e5 {[%clk 0:03:00.1]} 3. Nc3 {[%clk 0:02:58.8]} 3... exd4 {[%clk
0:03:00.6]} 4. Qxd4 {[%clk 0:02:59.3]} 4... Nc6 {[%clk 0:03:01.5]} 5. Qd2 {[%clk
0:02:59.5]} 5... g6 {[%clk 0:03:02.1]} 6. Nf3 {[%clk 0:02:59.3]} 6... Bg7 {[%clk
0:03:02.3]} 7. e3 {[%clk 0:02:58.2]} 7... Nf6 {[%clk 0:03:02.7]} 8. Be2 {[%clk
0:02:55.6]} 8... O-O {[%clk 0:03:03.3]} 9. O-O {[%clk 0:02:55.3]} 9... Re8
{[%clk 0:03:03]} 10. Nd4 {[%clk 0:02:36.8]} 10... Nxd4 {[%clk 0:02:55.8]} 11.
exd4 {[%clk 0:02:34.6]} 11... Bf5 {[%clk 0:02:55.1]} 12. b3 {[%clk 0:02:23.8]}
12... Ne4 {[%clk 0:02:34.7]} 13. Nxe4 {[%clk 0:02:22.7]} 13... Rxe4 {[%clk
0:02:35.2]} 14. Bb2 {[%clk 0:02:19.5]} 14... Re8 {[%clk 0:02:20.9]} 15. Bf3
{[%clk 0:02:11.5]} 15... c6 {[%clk 0:02:19.2]} 16. Rfe1 {[%clk 0:02:05.5]} 16...
Qh4 {[%clk 0:02:14.2]} 17. g3 {[%clk 0:01:49.4]} 17... Qf6 {[%clk 0:02:07.2]}
18. Bg2 {[%clk 0:01:32.6]} 18... h5 {[%clk 0:01:55.7]} 19. Rxe8+ {[%clk
0:01:06.1]} 19... Rxe8 {[%clk 0:01:51.7]} 20. Re1 {[%clk 0:01:07]} 20... Rxe1+
{[%clk 0:01:45.9]} 21. Qxe1 {[%clk 0:01:07.9]} 21... Qe6 {[%clk 0:01:41.8]} 22.
Qe3 {[%clk 0:00:42.7]} 22... Kh7 {[%clk 0:01:20.5]} 23. h4 {[%clk 0:00:39.4]}
23... Bh6 {[%clk 0:01:18.5]} 24. Qxe6 {[%clk 0:00:24.6]} 24... fxe6 {[%clk
0:01:17.1]} 25. f4 {[%clk 0:00:15.8]} 25... Bb1 {[%clk 0:01:09.3]} 26. d5 {[%clk
0:00:08.8]} 26... exd5 {[%clk 0:01:03.7]} 27. cxd5 {[%clk 0:00:09.7]} 27... cxd5
{[%clk 0:01:03.9]} 28. Bxd5 {[%clk 0:00:08.5]} 28... Bxa2 {[%clk 0:01:03.9]} 29.
Kf2 {[%clk 0:00:05.7]} 29... Bg7 {[%clk 0:01:03.1]} 30. Bxg7 {[%clk 0:00:02.8]}
30... Kxg7 {[%clk 0:01:04]} 31. Ke3 {[%clk 0:00:03.3]} 31... b6 {[%clk 0:01:02]}
32. Kd4 {[%clk 0:00:04.2]} 32... Kf6 {[%clk 0:00:58.8]} 0-1